fUST/lending_fUST_20250905
["ID","MTS","AMOUNT","RATE_DAILY","PERIOD"]
[383682464,1757083852941,-1002.03147663,0.00014521,2]
[383682465,1757083852952,-1000.0,0.00014521,2]
[383682466,1757083852966,-3255.99204981,0.00014547,2]
[383682467,1757083852975,-500.0,0.00014573,2]
[383682468,1757083852984,-500.0,0.00014573,2]
[383682469,1757083852994,-500.0,0.00014573,2]
[383682470,1757083853004,-500.0,0.00014573,2]
[383682471,1757083853013,-500.0,0.00014573,2]
[383682472,1757083853023,-500.0,0.00014573,2]
[383682473,1757083853032,-500.0,0.00014573,2]
[383682474,1757083853042,-500.0,0.00014573,2]
[383682475,1757083853052,-500.4054744,0.00014573,2]
[383682476,1757083853063,-579.82915608,0.00014573,2]
[383682477,1757083853073,-500.0,0.00014573,2]
[383682478,1757083853084,-339.74142587,0.00014573,2]
[383682479,1757083853095,-500.0,0.00014573,2]
[383682480,1757083853106,-189.1345363,0.00014573,2]
[383682481,1757083853117,-500.0,0.00014573,2]
[383682482,1757083853127,-500.0,0.00014573,2]
[383682483,1757083853138,-500.0,0.00014573,2]
[383682484,1757083853149,-500.0,0.00014573,2]
[383682485,1757083853159,-500.0,0.00014573,2]
[383682486,1757083853170,-500.0,0.00014573,2]
[383682487,1757083853181,-500.0,0.00014573,2]
[383682488,1757083853196,-500.0,0.00014573,2]
[383682489,1757083853211,-22309.888401,0.000146,2]
[383682490,1757083853226,-3376.46375566,0.00014602,2]
[383682491,1757083853239,-3501.39291462,0.00014657,2]
[383682492,1757083853251,-1631.25068879,0.00014712,2]
[383682493,1757083853262,-480.0,0.00014792,2]
[383682494,1757083853272,-480.0,0.00014792,2]
[383682495,1757083853282,-480.0,0.00014792,2]
[383682496,1757083853293,-480.0,0.00014792,2]
[383682497,1757083853303,-480.0,0.00014792,2]
[383682498,1757083853313,-342.68,0.00014792,2]
[383682499,1757083853323,-448.31201747,0.00014792,2]
[383682500,1757083853332,-480.0,0.00014792,2]
[383682501,1757083853342,-591.73725784,0.00014792,2]
[383682502,1757083853352,-281.12,0.00014792,2]
[383682503,1757083853362,-480.0,0.00014792,2]
[383682504,1757083853372,-480.0,0.00014792,2]
[383682505,1757083853383,-480.0,0.00014792,2]
[383682506,1757083853392,-480.0,0.00014792,2]
[383682507,1757083853402,-480.0,0.00014792,2]
[383682508,1757083853411,-480.0,0.00014792,2]
[383682509,1757083853421,-221.38,0.00014792,2]
[383682510,1757083853430,-480.0,0.00014792,2]
[383682511,1757083853440,-480.0,0.00014792,2]
[383682512,1757083853449,-480.0,0.00014792,2]
[383682513,1757083853464,-480.0,0.00014792,2]
[383682514,1757083853473,-480.0,0.00014792,2]
[383682515,1757083853483,-480.0,0.00014792,2]
[383682516,1757083853493,-480.0,0.00014792,2]
[383682517,1757083853502,-585.73652544,0.00014792,2]
[383682518,1757083853512,-480.0,0.00014792,2]
[383682519,1757083853522,-480.0,0.00014792,2]
[383682520,1757083853531,-480.0,0.00014792,2]
[383682521,1757083853541,-480.0,0.00014792,2]
[383682522,1757083853550,-480.0,0.00014792,2]
[383682523,1757083853560,-480.0,0.00014792,2]
[383682524,1757083853570,-480.0,0.00014794,2]
[383682525,1757083853580,-480.0,0.00014794,2]
[383682526,1757083853589,-258.21287581,0.00014794,2]
[383682527,1757083853598,-480.0,0.00014794,2]
[383682528,1757083853609,-153.9554693,0.00014794,2]
[383682529,1757083853619,-480.0,0.00014794,2]
[383682530,1757083853629,-480.0,0.00014794,2]
[383682531,1757083853639,-630.46,0.00014794,2]
[383682532,1757083853648,-769.36,0.00014794,2]
[383682533,1757083853658,-2009.33,0.00014794,2]
[383682534,1757083853668,-821.28,0.00014794,2]
[383682535,1757083853678,-480.0,0.00014794,2]
[383682536,1757083853687,-480.0,0.00014794,2]
[383682537,1757083853697,-480.0,0.00014794,2]
[383682538,1757083853712,-275.81697063,0.00014794,2]
[383682539,1757083853722,-1751.48,0.00014794,2]
[383682540,1757083853732,-480.0,0.00014794,2]
[383682541,1757083853743,-620.18,0.00014794,2]
[383682542,1757083853754,-480.0,0.00014794,2]
[383682543,1757083853764,-1808.86,0.00014794,2]
[383682544,1757083853775,-480.0,0.00014794,2]
[383682545,1757083853786,-480.0,0.00014794,2]
[383682546,1757083853795,-518.18,0.00014794,2]
[383682547,1757083853804,-4070.77,0.00014794,2]
[383682548,1757083853814,-480.0,0.00014794,2]
[383682549,1757083853824,-480.0,0.00014794,2]
[383682550,1757083853834,-598.14,0.00014794,2]
[383682551,1757083853844,-480.0,0.00014794,2]
[383682552,1757083853853,-544.19,0.00014794,2]
[383682553,1757083853863,-480.0,0.00014794,2]
[383682554,1757083853872,-480.0,0.00014794,2]
[383682555,1757083853880,-480.0,0.00014794,2]
[383682556,1757083853889,-480.0,0.00014794,2]
[383682557,1757083853899,-829.23,0.00014794,2]
[383682558,1757083853908,-480.0,0.00014794,2]
[383682559,1757083853917,-849.11,0.00014794,2]
[383682560,1757083853928,-480.0,0.00014794,2]
[383682561,1757083853938,-480.0,0.00014794,2]
[383682562,1757083853947,-1046.78,0.00014794,2]
[383682563,1757083853960,-1000.0,0.00014821,2]
[383682564,1757083853969,-1000.0,0.00014821,2]
[383682565,1757083853979,-617.4797379,0.00014821,2]
[383682566,1757083853988,-164.00281279,0.00014821,2]
[383682567,1757083853999,-503.70918573,0.00014821,2]
[383682568,1757083854009,-1000.0,0.00014821,2]
[383682569,1757083854019,-160.0,0.00015,2]
[383682570,1757083854028,-420.0,0.00015008,2]
[383682571,1757083854036,-480.0,0.00015066,2]
[383682572,1757083854046,-480.0,0.00015066,2]
[383682573,1757083854056,-480.0,0.00015066,2]
[383682574,1757083854067,-480.0,0.00015066,2]
[383682575,1757083854076,-515.81282418,0.00015066,2]
[383682576,1757083854085,-480.0,0.00015066,2]
[383682577,1757083854095,-480.0,0.00015068,2]
[383682578,1757083854105,-480.0,0.00015068,2]
[383682579,1757083854115,-480.0,0.00015068,2]
[383682580,1757083854125,-630.46,0.00015068,2]
[383682581,1757083854134,-769.36,0.00015068,2]
[383682582,1757083854144,-2009.33,0.00015068,2]
[383682583,1757083854153,-821.28,0.00015068,2]
[383682584,1757083854162,-480.0,0.00015068,2]
[383682585,1757083854172,-480.0,0.00015068,2]
[383682586,1757083854181,-480.0,0.00015068,2]
[383682587,1757083854192,-1751.48,0.00015068,2]
[383682588,1757083854207,-620.18,0.00015068,2]
[383682589,1757083854217,-1808.86,0.00015068,2]
[383682590,1757083854227,-480.0,0.00015068,2]
[383682591,1757083854236,-4070.77,0.00015068,2]
[383682592,1757083854247,-480.0,0.00015068,2]
[383682593,1757083854257,-480.0,0.00015068,2]
[383682594,1757083854266,-598.14,0.00015068,2]
[383682595,1757083854277,-480.0,0.00015068,2]
[383682596,1757083854286,-480.0,0.00015068,2]
[383682597,1757083854296,-480.0,0.00015068,2]
[383682598,1757083854305,-480.0,0.00015068,2]
[383682599,1757083854316,-480.0,0.00015068,2]
[383682600,1757083854326,-829.23,0.00015068,2]
[383682601,1757083854335,-480.0,0.00015068,2]
[383682602,1757083854345,-849.11,0.00015068,2]
[383682603,1757083854355,-577.33,0.00015068,2]
[383682604,1757083854365,-480.0,0.00015068,2]
[383682605,1757083854375,-1046.78,0.00015068,2]
[383682606,1757083854384,-1500.0,0.00015068,2]
[383682607,1757083854393,-1500.0,0.00015068,2]
[383682608,1757083854403,-156.790496,0.00015095,5]
[383682609,1757083854412,-808.70718763,0.00015121,2]
[383682610,1757083854422,-1000.0,0.00015121,2]
[383682611,1757083854432,-875.19458275,0.00015121,2]
[383682612,1757083854441,-1000.0,0.00015121,2]
[383682613,1757083854451,-508.14425203,0.00015121,2]
[383682614,1757083854464,-1045.04159615,0.00015121,2]
[383682615,1757083854475,-1000.0,0.00015121,2]
[383682616,1757083854485,-1000.0,0.00015121,2]
[383682617,1757083854496,-1000.0,0.00015121,2]
[383682618,1757083854506,-1000.0,0.00015121,2]
[383682619,1757083854516,-1000.0,0.00015121,2]
[383682620,1757083854525,-1000.0,0.00015121,2]
[383682621,1757083854535,-752.20595712,0.00015121,2]
[383682622,1757083854545,-1000.0,0.00015121,2]
[383682623,1757083854555,-1000.0,0.00015121,2]
[383682624,1757083854564,-1000.0,0.00015121,2]
[383682625,1757083854574,-1000.0,0.00015121,2]
[383682626,1757083854584,-1000.0,0.00015121,2]
[383682627,1757083854594,-975.0,0.00015188,2]
[383682628,1757083854603,-2153.0,0.00015188,2]
[383682629,1757083854613,-633.0,0.00015188,2]
[383682630,1757083854622,-409.0,0.00015188,2]
[383682631,1757083854632,-376.33874283,0.0001534,2]
[383682632,1757083854642,-480.0,0.0001534,2]
[383682633,1757083854651,-618.87,0.0001534,2]
[383682634,1757083854661,-257.61,0.00015342,2]
[383682635,1757083854671,-314.17,0.00015342,2]
[383682636,1757083854681,-630.46,0.00015342,2]
[383682637,1757083854691,-769.36,0.00015342,2]
[383682638,1757083854701,-2009.33,0.00015342,2]
[383682639,1757083854712,-821.28,0.00015342,2]
[383682640,1757083854722,-480.0,0.00015342,2]
[383682641,1757083854731,-480.0,0.00015342,2]
[383682642,1757083854741,-480.0,0.00015342,2]
[383682643,1757083854750,-1751.48,0.00015342,2]
[383682644,1757083854760,-620.18,0.00015342,2]
[383682645,1757083854846,-1808.86,0.00015342,2]
[383682646,1757083854868,-161.24,0.00015342,2]
[383682647,1757083854878,-4070.77,0.00015342,2]
[383682648,1757083854887,-480.0,0.00015342,2]
[383682649,1757083854897,-598.14,0.00015342,2]
[383682650,1757083854906,-480.0,0.00015342,2]
[383682651,1757083854915,-480.0,0.00015342,2]
[383682652,1757083854924,-480.0,0.00015342,2]
[383682653,1757083854934,-480.0,0.00015342,2]
[383682654,1757083854944,-480.0,0.00015342,2]
[383682655,1757083854955,-829.23,0.00015342,2]
[383682656,1757083854966,-300.57,0.00015342,2]
[383682657,1757083854976,-849.11,0.00015342,2]
[383682658,1757083854986,-480.0,0.00015342,2]
[383682659,1757083854996,-1046.78,0.00015342,2]
[383682660,1757083855006,-720.0,0.00015368,2]
[383682661,1757083855016,-1500.0,0.00015368,2]
[383682662,1757083855026,-1500.0,0.00015368,2]
[383682663,1757083855035,-710.61373825,0.00015368,2]
[383682664,1757083855045,-151.0,0.000154,2]
[383682665,1757083855054,-334.78421808,0.00015578,2]
[383682666,1757083855062,-402.75610178,0.00015614,2]
[383682667,1757083855071,-630.46,0.00015616,2]
[383682668,1757083855079,-769.36,0.00015616,2]
[383682669,1757083855088,-2009.33,0.00015616,2]
[383682670,1757083855097,-821.28,0.00015616,2]
[383682671,1757083855109,-480.0,0.00015616,2]
[383682672,1757083855118,-480.0,0.00015616,2]
[383682673,1757083855129,-480.0,0.00015616,2]
[383682674,1757083855140,-1751.48,0.00015616,2]
[383682675,1757083855150,-620.18,0.00015616,2]
[383682676,1757083855160,-1808.86,0.00015616,2]
[383682677,1757083855170,-4070.77,0.00015616,2]
[383682678,1757083855180,-480.0,0.00015616,2]
[383682679,1757083855194,-598.14,0.00015616,2]
[383682680,1757083855203,-480.0,0.00015616,2]
[383682681,1757083855217,-480.0,0.00015616,2]
[383682682,1757083855227,-480.0,0.00015616,2]
[383682683,1757083855238,-480.0,0.00015616,2]
[383682684,1757083855248,-480.0,0.00015616,2]
[383682685,1757083855257,-829.23,0.00015616,2]
[383682686,1757083855268,-849.11,0.00015616,2]
[383682687,1757083855277,-480.0,0.00015616,2]
[383682688,1757083855287,-1046.78,0.00015616,2]
[383682689,1757083855297,-1084.22120539,0.00015616,2]
[383682690,1757083855307,-2000.0,0.00015616,2]
[383682691,1757083855316,-1500.0,0.00015668,2]
[383682692,1757083855326,-1500.0,0.00015668,2]
[383682693,1757083855335,-1500.0,0.00015668,2]
[383682694,1757083855344,-1500.0,0.00015668,2]
[383682695,1757083855355,-1401.56042921,0.00015668,2]
[383682696,1757083855364,-1500.0,0.00015668,2]
[383682697,1757083855374,-1500.0,0.00015668,2]
[383682698,1757083855383,-1500.0,0.00015668,2]
[383682699,1757083855392,-1500.0,0.00015668,2]
[383682700,1757083855402,-1500.0,0.00015668,2]
[383682701,1757083855411,-1500.0,0.00015668,2]
[383682702,1757083855421,-1500.0,0.00015668,2]
[383682703,1757083855430,-1500.0,0.00015668,2]
[383682704,1757083855440,-3245.4074124,0.0001567,2]
[383682705,1757083855449,-1395.7773838,0.0001567,2]
[383682706,1757083855460,-21468.5338384,0.0001567,2]
[383682707,1757083855470,-3148.708343,0.0001567,2]
[383682708,1757083855480,-195.54643868,0.00015828,2]
[383682709,1757083855490,-303.14769542,0.0001589,2]
[383682710,1757083855500,-157.0,0.0001589,2]
[383682711,1757083855510,-302.0,0.0001589,2]
[383682712,1757083855519,-157.0,0.0001589,2]
[383682713,1757083855529,-197.12985849,0.0001589,2]
[383682714,1757083855539,-630.46,0.0001589,2]
[383682715,1757083855549,-769.36,0.0001589,2]
[383682716,1757083855559,-2812.89592734,0.0001589,2]
[383682717,1757083855568,-2009.33,0.0001589,2]
[383682718,1757083855578,-821.28,0.0001589,2]
[383682719,1757083855587,-480.0,0.0001589,2]
[383682720,1757083855597,-480.0,0.0001589,2]
[383682721,1757083855607,-480.0,0.0001589,2]
[383682722,1757083855617,-1751.48,0.0001589,2]
[383682723,1757083855627,-620.18,0.0001589,2]
[383682724,1757083855636,-1808.86,0.0001589,2]
[383682725,1757083855646,-4070.77,0.0001589,2]
[383682726,1757083855655,-482.99873273,0.0001589,2]
[383682727,1757083855665,-598.14,0.0001589,2]
[383682728,1757083855675,-480.0,0.0001589,2]
[383682729,1757083855684,-480.0,0.0001589,2]
[383682730,1757083855694,-480.0,0.0001589,2]
[383682731,1757083855704,-480.0,0.0001589,2]
[383682732,1757083855718,-157.0,0.0001589,2]
[383682733,1757083855728,-500.0,0.0001589,2]
[383682734,1757083855737,-480.0,0.0001589,2]
[383682735,1757083855746,-829.23,0.0001589,2]
[383682736,1757083855756,-849.11,0.0001589,2]
[383682737,1757083855766,-500.0,0.0001589,2]
[383682738,1757083855775,-193.98,0.0001589,2]
[383682739,1757083855785,-480.0,0.0001589,2]
[383682740,1757083855795,-1046.78,0.0001589,2]
[383682741,1757083855804,-151.0,0.000159,2]
[383682742,1757083855813,-1910.29187272,0.00015916,2]
[383682743,1757083855823,-2000.0,0.00015916,2]
[383682744,1757083855832,-160.0,0.00015983,2]
[383682745,1757083855842,-1277.6,0.00016,2]
[383682746,1757083855851,-151.0,0.00016,2]
[383682747,1757083855860,-49119.41093347,0.00016038,2]
[383682748,1757083855869,-250.0,0.00016085,2]
[383682749,1757083855879,-500.0,0.00016107,2]
[383682750,1757083855888,-500.0,0.00016107,2]
[383682751,1757083855897,-173.35808123,0.00016107,2]
[383682752,1757083855907,-500.0,0.00016107,2]
[383682753,1757083855919,-1755.4207517,0.00016137,2]
[383682754,1757083855928,-174.0,0.00016164,2]
[383682755,1757083855938,-157.0,0.00016164,2]
[383682756,1757083855947,-218.67670021,0.00016164,2]
[383682757,1757083855956,-500.0,0.00016164,2]
[383682758,1757083855968,-500.0,0.00016164,2]
[383682759,1757083855978,-630.46,0.00016164,2]
[383682760,1757083855988,-769.36,0.00016164,2]
[383682761,1757083855998,-2009.33,0.00016164,2]
[383682762,1757083856007,-821.28,0.00016164,2]
[383682763,1757083856016,-480.0,0.00016164,2]
[383682764,1757083856026,-480.0,0.00016164,2]
[383682765,1757083856035,-480.0,0.00016164,2]
[383682766,1757083856044,-1751.48,0.00016164,2]
[383682767,1757083856053,-620.18,0.00016164,2]
[383682768,1757083856062,-1808.86,0.00016164,2]
[383682769,1757083856071,-4070.77,0.00016164,2]
[383682770,1757083856080,-598.14,0.00016164,2]
[383682771,1757083856090,-480.0,0.00016164,2]
[383682772,1757083856100,-502.52,0.00016164,2]
[383682773,1757083856109,-480.0,0.00016164,2]
[383682774,1757083856119,-480.0,0.00016164,2]
[383682775,1757083856127,-480.0,0.00016164,2]
[383682776,1757083856136,-829.23,0.00016164,2]
[383682777,1757083856146,-849.11,0.00016164,2]
[383682778,1757083856155,-480.0,0.00016164,2]
[383682779,1757083856164,-1046.78,0.00016164,2]
[383682780,1757083856173,-2500.0,0.00016164,2]
[383682781,1757083856183,-151.0,0.000162,2]
[383682782,1757083856201,-1337.79773544,0.00016208,2]
[383682783,1757083856213,-2000.0,0.00016216,2]
[383682784,1757083856223,-2000.0,0.00016216,2]
[383682785,1757083856233,-2000.0,0.00016216,2]
[383682786,1757083856245,-2000.0,0.00016216,2]
[383682787,1757083856254,-256.44038218,0.00016216,2]
[383682788,1757083856265,-2000.0,0.00016216,2]
[383682789,1757083856274,-2000.0,0.00016216,2]
[383682790,1757083856285,-227.25510922,0.00016216,2]
[383682791,1757083856295,-2000.0,0.00016216,2]
[383682792,1757083856304,-2071.61752399,0.00016216,2]
[383682793,1757083856315,-1188.74414302,0.00016216,2]
[383682794,1757083856327,-2000.0,0.00016216,2]
[383682795,1757083856336,-500.0,0.00016273,2]
[383682796,1757083856345,-500.0,0.00016273,2]
[383682797,1757083856355,-500.0,0.00016273,2]
[383682798,1757083856364,-230.2605485,0.00016394,2]
[383682799,1757083856374,-500.0,0.00016404,2]
[383682800,1757083856384,-447.26021461,0.00016404,2]
[383682801,1757083856394,-500.0,0.00016404,2]
[383682802,1757083856403,-500.0,0.00016404,2]
[383682803,1757083856412,-500.0,0.00016404,2]
[383682804,1757083856422,-523.92342404,0.00016404,2]
[383682805,1757083856432,-502.50935352,0.00016404,2]
[383682806,1757083856442,-500.0,0.00016404,2]
[383682807,1757083856452,-500.0,0.00016404,2]
[383682808,1757083856463,-169.84930271,0.00016404,2]
[383682809,1757083856473,-500.0,0.00016404,2]
[383682810,1757083856482,-500.0,0.00016404,2]
[383682811,1757083856492,-500.0,0.00016404,2]
[383682812,1757083856502,-500.62894446,0.00016404,2]
[383682813,1757083856511,-207.93784841,0.00016404,2]
[383682814,1757083856521,-500.0,0.00016404,2]
[383682815,1757083856530,-500.84012531,0.00016404,2]
[383682816,1757083856540,-155.16698229,0.00016404,2]
[383682817,1757083856550,-500.0,0.00016404,2]
[383682818,1757083856560,-500.0,0.00016404,2]
[383682819,1757083856569,-500.0,0.00016404,2]
[383682820,1757083856579,-1253.41288594,0.00016419,2]
[383682821,1757083856590,-251.164,0.00016423,2]
[383682822,1757083856600,-157.0,0.00016438,2]
[383682823,1757083856609,-500.0,0.00016438,2]
[383682824,1757083856619,-357.53790365,0.00016438,2]
[383682825,1757083856629,-500.0,0.00016438,2]
[383682826,1757083856638,-500.0,0.00016438,2]
[383682827,1757083856648,-500.0,0.00016438,2]
[383682828,1757083856659,-500.0,0.00016438,2]
[383682829,1757083856668,-500.0,0.00016438,2]
[383682830,1757083856678,-258.44049699,0.00016438,2]
[383682831,1757083856687,-157.0,0.00016438,2]
[383682832,1757083856697,-630.46,0.00016438,2]
[383682833,1757083856707,-769.36,0.00016438,2]
[383682834,1757083856718,-2009.33,0.00016438,2]
[383682835,1757083856727,-821.28,0.00016438,2]
[383682836,1757083856736,-480.0,0.00016438,2]
[383682837,1757083856746,-480.0,0.00016438,2]
[383682838,1757083856755,-480.0,0.00016438,2]
[383682839,1757083856764,-1751.48,0.00016438,2]
[383682840,1757083856773,-620.18,0.00016438,2]
[383682841,1757083856783,-1808.86,0.00016438,2]
[383682842,1757083856793,-4070.77,0.00016438,2]
[383682843,1757083856803,-598.14,0.00016438,2]
[383682844,1757083856815,-480.0,0.00016438,2]
[383682845,1757083856911,-318.54,0.00016438,2]
[383682846,1757083856922,-480.0,0.00016438,2]
[383682847,1757083856933,-480.0,0.00016438,2]
[383682848,1757083856944,-829.23,0.00016438,2]
[383682849,1757083856954,-849.11,0.00016438,2]
[383682850,1757083856964,-273.97572993,0.00016438,2]
[383682851,1757083856974,-1046.78,0.00016438,2]
[383682852,1757083856985,-500.0,0.00016438,2]
[383682853,1757083856995,-500.0,0.00016438,2]
[383682854,1757083857005,-446.69371777,0.00016438,2]
[383682855,1757083857015,-500.0,0.00016438,2]
[383682856,1757083857024,-500.0,0.00016438,2]
[383682857,1757083857034,-500.0,0.00016438,2]
[383682858,1757083857043,-500.0,0.00016438,2]
[383682859,1757083857052,-500.0,0.00016438,2]
[383682860,1757083857062,-500.0,0.00016438,2]
[383682861,1757083857072,-170.14938653,0.00016438,2]
[383682862,1757083857081,-500.0,0.00016438,2]
[383682863,1757083857091,-500.0,0.00016438,2]
[383682864,1757083857101,-500.0,0.00016438,2]
[383682865,1757083857111,-151.0,0.00016438,2]
[383682866,1757083857120,-151.0,0.00016438,2]
[383682867,1757083857129,-151.0,0.00016438,2]
[383682868,1757083857139,-151.0,0.00016438,2]
[383682869,1757083857148,-151.0,0.00016438,2]
[383682870,1757083857158,-151.0,0.00016438,2]
[383682871,1757083857167,-151.0,0.00016438,2]
[383682872,1757083857177,-151.0,0.00016438,2]
[383682873,1757083857188,-151.0,0.00016438,2]
[383682874,1757083857199,-151.0,0.00016438,2]
[383682875,1757083857212,-151.0,0.00016438,2]
[383682876,1757083857222,-223.736992,0.00016438,2]
[383682877,1757083857231,-151.0,0.00016438,2]
[383682878,1757083857241,-151.0,0.00016438,2]
[383682879,1757083857251,-151.0,0.00016438,2]
[383682880,1757083857261,-151.0,0.00016438,2]
[383682881,1757083857271,-151.0,0.00016438,2]
[383682882,1757083857282,-161.374665,0.00016438,2]
[383682883,1757083857292,-151.17811044,0.00016438,2]
[383682884,1757083857303,-300.0,0.00016438,2]
[383682885,1757083857313,-196.961315,0.00016438,2]
[383682886,1757083857324,-196.961315,0.00016438,2]
[383682887,1757083857334,-196.961315,0.00016438,2]
[383682888,1757083857344,-196.961315,0.00016438,2]
[383682889,1757083857353,-196.961315,0.00016438,2]
[383682890,1757083857363,-196.961315,0.00016438,2]
[383682891,1757083857373,-196.961315,0.00016438,2]
[383682892,1757083857383,-196.961315,0.00016438,2]
[383682893,1757083857392,-196.961315,0.00016438,2]
[383682894,1757083857403,-587.0,0.00016447,2]
[383682895,1757083857412,-2500.0,0.00016464,2]
[383682896,1757083857422,-260.0,0.00016531,2]
[383682897,1757083857432,-391.6873134,0.00016549,2]
[383682898,1757083857441,-151.0,0.000166,2]
[383682899,1757083857451,-1000.0,0.00016655,2]
[383682900,1757083857462,-1000.0,0.00016655,2]
[383682901,1757083857473,-1000.0,0.00016655,2]
[383682902,1757083857483,-157.0,0.00016712,2]
[383682903,1757083857493,-500.0,0.00016712,2]
[383682904,1757083857504,-157.0,0.00016712,2]
[383682905,1757083857514,-630.46,0.00016712,2]
[383682906,1757083857524,-769.36,0.00016712,2]
[383682907,1757083857534,-2009.33,0.00016712,2]
[383682908,1757083857544,-821.28,0.00016712,2]
[383682909,1757083857553,-480.0,0.00016712,2]
[383682910,1757083857563,-480.0,0.00016712,2]
[383682911,1757083857573,-480.0,0.00016712,2]
[383682912,1757083857583,-1751.48,0.00016712,2]
[383682913,1757083857593,-620.18,0.00016712,2]
[383682914,1757083857603,-1808.86,0.00016712,2]
[383682915,1757083857613,-4070.77,0.00016712,2]
[383682916,1757083857622,-598.14,0.00016712,2]
[383682917,1757083857632,-480.0,0.00016712,2]
[383682918,1757083857642,-480.0,0.00016712,2]
[383682919,1757083857652,-480.0,0.00016712,2]
[383682920,1757083857662,-829.23,0.00016712,2]
[383682921,1757083857672,-849.11,0.00016712,2]
[383682922,1757083857683,-1046.78,0.00016712,2]
[383682923,1757083857693,-3000.0,0.00016712,2]
[383682924,1757083857703,-799.50309183,0.00016764,2]
[383682925,1757083857716,-1883.69406673,0.00016764,2]
[383682926,1757083857726,-2500.0,0.00016764,2]
[383682927,1757083857735,-2500.0,0.00016764,2]
[383682928,1757083857745,-2500.0,0.00016764,2]
[383682929,1757083857756,-2500.0,0.00016764,2]
[383682930,1757083857765,-2500.0,0.00016764,2]
[383682931,1757083857776,-2500.0,0.00016764,2]
[383682932,1757083857786,-10636.66126664,0.0001682,2]
[383682933,1757083857795,-1000.0,0.00016821,2]
[383682934,1757083857806,-1000.0,0.00016821,2]
[383682935,1757083857815,-464.65274698,0.00016821,2]
[383682936,1757083857825,-5746.06717162,0.0001688,2]
[383682937,1757083857834,-151.0,0.000169,2]
[383682938,1757083857844,-864.0,0.00016905,2]
[383682939,1757083857853,-279.0,0.00016938,2]
[383682940,1757083857863,-1000.0,0.00016952,2]
[383682941,1757083857872,-1068.18753975,0.00016952,2]
[383682942,1757083857883,-1000.0,0.00016952,2]
[383682943,1757083857894,-506.80487785,0.00016952,2]
[383682944,1757083857904,-1000.0,0.00016952,2]
[383682945,1757083857913,-531.56126284,0.00016952,2]
[383682946,1757083857923,-1000.0,0.00016952,2]
[383682947,1757083857933,-501.9751842,0.00016952,2]
[383682948,1757083857942,-970.74447193,0.00016952,2]
[383682949,1757083857953,-1000.0,0.00016952,2]
[383682950,1757083857965,-1000.0,0.00016952,2]
[383682951,1757083857975,-1000.0,0.00016952,2]
[383682952,1757083857985,-1000.0,0.00016952,2]
[383682953,1757083857995,-500.0,0.00016973,2]
[383682954,1757083858004,-500.0,0.00016973,2]
[383682955,1757083858014,-500.0,0.00016973,2]
[383682956,1757083858024,-500.0,0.00016973,2]
[383682957,1757083858035,-500.0,0.00016973,2]
[383682958,1757083858045,-500.0,0.00016973,2]
[383682959,1757083858055,-500.25309275,0.00016973,2]
[383682960,1757083858064,-500.0,0.00016973,2]
[383682961,1757083858075,-500.0,0.00016973,2]
[383682962,1757083858084,-202.45355063,0.00016973,2]
[383682963,1757083858094,-500.0,0.00016973,2]